bitfinex/quotes_BTCUSD_20241123
["timestamp","ask_amount","ask_price","bid_price","bid_amount"]
[1732378701276,1.0017246,97912.0,97911.0,0.10530437]
[1732378702414,1.0017246,97912.0,97911.0,0.25530437]
[1732378702648,1.0017246,97912.0,97911.0,0.28233481]
[1732378703345,0.9717246,97912.0,97911.0,0.28233481]
[1732378704546,0.9715436,97912.0,97911.0,0.28233481]
[1732378708510,0.89631998,97912.0,97911.0,0.28233481]
[1732378712165,0.89803858,97912.0,97911.0,0.28233481]
[1732378714314,0.69377248,97912.0,97911.0,0.25201427]
[1732378714588,0.69377248,97912.0,97911.0,0.33051427]
[1732378716049,0.69377248,97912.0,97911.0,0.38051427]
[1732378716991,0.66353052,97912.0,97911.0,0.38051427]
[1732378717225,0.65414644,97912.0,97911.0,0.38051427]
[1732378717487,0.64770009,97912.0,97911.0,0.38051427]
[1732378718487,0.60582323,97912.0,97911.0,0.38051427]
[1732378718712,0.58913338,97912.0,97911.0,0.38051427]
[1732378719670,0.37505345,97912.0,97911.0,0.34851427]
[1732378719903,0.30135345,97912.0,97911.0,0.32571427]
[1732378720138,0.30135345,97912.0,97911.0,0.3295126]
[1732378720370,0.0017214,97949.0,97930.0,0.41943507]
[1732378720606,0.0017214,97949.0,97939.0,0.08375866]
[1732378720865,0.0017214,97949.0,97941.0,0.15]
[1732378721113,0.0017214,97949.0,97948.0,0.15]
[1732378721336,0.0017214,97949.0,97948.0,0.25201427]
[1732378721820,0.0017214,97949.0,97948.0,0.25594064]
[1732378723962,0.0017214,97949.0,97948.0,0.10594064]
[1732378724198,0.0017214,97949.0,97948.0,0.10794064]
[1732378724425,0.0017214,97949.0,97948.0,0.10896107]
[1732378724652,0.0017214,97949.0,97948.0,0.10594064]
[1732378726553,0.001723,97968.0,97948.0,0.10594064]
[1732378726554,0.00116017,97968.0,97948.0,0.10594064]
[1732378726776,0.00116017,97968.0,97949.0,0.10201427]
[1732378726995,0.00116017,97968.0,97950.0,0.15]
[1732378727220,0.00116017,97968.0,97952.0,0.15]
[1732378727464,0.00116017,97968.0,97954.0,0.15]
[1732378727684,0.00116017,97968.0,97955.0,0.10201427]
[1732378727907,0.00116017,97968.0,97956.0,0.15]
[1732378728129,0.00116017,97968.0,97958.0,0.15]
[1732378728369,0.00167437,97969.0,97960.0,0.15]
[1732378728615,0.00167437,97969.0,97962.0,0.15]
[1732378728873,0.00167437,97969.0,97963.0,0.10201427]
[1732378729124,0.00167437,97969.0,97964.0,0.15]
[1732378729364,0.00167437,97969.0,97965.0,0.10201427]
[1732378729591,0.00167437,97969.0,97966.0,0.15]
[1732378729825,0.00167437,97969.0,97968.0,0.15]
[1732378730083,0.00167437,97969.0,97968.0,0.25201427]
[1732378730307,0.00167437,97969.0,97968.0,0.25593316]
[1732378731669,0.00167437,97969.0,97968.0,0.27517496]
[1732378733533,0.00167437,97969.0,97968.0,0.25593316]
[1732378735851,0.00167437,97969.0,97968.0,0.02596199]
[1732378736075,0.00167437,97969.0,97968.0,0.06663365]
[1732378736295,0.00167437,97969.0,97968.0,0.02596199]
[1732378741147,0.00167437,97969.0,97968.0,0.00391889]
[1732378741652,0.00167437,97969.0,97948.0,0.0008587]
[1732378741896,0.00167437,97969.0,97968.0,0.00390716]
[1732378742364,0.00167437,97969.0,97949.0,0.10201427]
[1732378742630,0.00167437,97969.0,97968.0,0.00391183]
[1732378742869,0.00167437,97969.0,97949.0,0.10201427]
[1732378743363,0.2,97963.0,97950.0,0.00371629]
[1732378743598,0.2,97963.0,97948.0,0.0008587]
[1732378743827,0.2,97958.0,97948.0,0.0008587]
[1732378744058,0.2,97950.0,97948.0,0.0008587]
[1732378744357,0.12550717,97960.0,97880.0,0.12550717]
[1732378744358,0.0805,97945.0,97882.0,0.22662883]
[1732378744584,0.0498,97937.0,97912.0,0.10201427]
[1732378744820,0.0498,97937.0,97912.0,0.10539707]
[1732378745058,0.2498,97937.0,97912.0,0.10539707]
[1732378745311,0.24957574,97937.0,97912.0,0.10539707]
[1732378745549,0.2,97933.0,97912.0,0.0033828]
[1732378745787,0.2805,97928.0,97912.0,0.0033828]
[1732378746040,0.0805,97926.0,97891.0,0.04136793]
[1732378746287,0.0805,97926.0,97862.0,0.004]
[1732378746288,0.2,97921.0,97862.0,0.004]
[1732378746533,0.10201427,97925.0,97862.0,0.004]
[1732378746534,0.2,97919.0,97911.0,0.0008592]
[1732378747253,0.2,97907.0,97850.0,0.0048587]
[1732378747490,0.12550717,97930.0,97850.0,0.0048587]
[1732378747491,0.0828,97899.0,97852.0,0.27244348]
[1732378747711,0.0828,97899.0,97850.0,0.0008587]
[1732378748174,0.2,97897.0,97850.0,0.0008587]
[1732378748410,0.2,97891.0,97850.0,0.0008587]
[1732378748652,0.0828,97899.0,97850.0,0.0008587]
[1732378748653,0.2,97888.0,97850.0,0.0008587]
[1732378748884,0.2,97884.0,97851.0,0.10201427]
[1732378749118,0.2,97886.0,97851.0,0.10201427]
[1732378749395,0.10201427,97888.0,97852.0,0.00484761]
[1732378749396,0.2,97881.0,97852.0,0.00484761]
[1732378749616,0.2,97881.0,97853.0,0.10201427]
[1732378749861,0.2,97880.0,97853.0,0.10201427]
[1732378750105,0.2,97880.0,97854.0,0.00479957]
[1732378750327,0.2,97880.0,97850.0,0.0008587]
[1732378750328,0.2,97880.0,97856.0,0.15]
[1732378750560,0.2,97880.0,97857.0,0.0047995]
[1732378750813,0.2,97880.0,97877.0,0.15]
[1732378751263,0.2,97880.0,97878.0,0.00480537]
[1732378751489,0.35061427,97879.0,97878.0,0.00480537]
[1732378751736,0.43341427,97879.0,97878.0,0.00480537]
[1732378752023,0.2,97877.0,97850.0,0.0008587]
[1732378752251,0.2,97876.0,97850.0,0.0008587]
[1732378753642,0.2,97875.0,97850.0,0.0008587]
[1732378755500,0.2,97873.0,97850.0,0.0008587]
[1732378756003,0.2,97872.0,97850.0,0.0008587]
[1732378756231,0.0486,97871.0,97850.0,0.0008587]
[1732378756455,0.10201427,97870.0,97850.0,0.0008587]
[1732378756682,0.2,97864.0,97850.0,0.0008587]
[1732378756924,0.30201427,97864.0,97850.0,0.0008587]
[1732378757174,0.2,97856.0,97850.0,0.0008587]
[1732378757431,0.0463,97855.0,97810.0,0.12550717]
[1732378757661,0.0463,97855.0,97811.0,0.10201427]
[1732378757662,0.0785,97842.0,97811.0,0.10201427]
[1732378757895,0.0785,97842.0,97811.0,0.10649304]
[1732378758925,0.0785,97842.0,97812.0,0.15]
[1732378759171,0.0785,97842.0,97814.0,0.15]
[1732378759400,0.0785,97842.0,97815.0,0.10201427]
[1732378759756,0.0785,97842.0,97816.0,0.15]
[1732378759931,0.0785,97842.0,97816.0,0.25201427]
[1732378760388,0.2785,97842.0,97817.0,0.00408085]
[1732378760856,0.2785,97842.0,97816.0,0.25201427]
[1732378761098,0.2785,97842.0,97800.0,0.16191718]
[1732378761099,0.34831427,97841.0,97801.0,0.15]
[1732378761336,0.2463,97841.0,97817.0,0.00408086]
[1732378761561,0.2463,97841.0,97803.0,0.13896483]
[1732378761562,0.34831427,97841.0,97803.0,0.13896483]
[1732378761802,0.2463,97841.0,97804.0,0.10201427]
[1732378762040,0.34831427,97841.0,97804.0,0.10609519]
[1732378762551,0.10201427,97840.0,97804.0,0.10609519]
[1732378762781,0.10201427,97840.0,97805.0,0.00102212]
[1732378763011,0.2,97839.0,97804.0,0.10609519]
[1732378763237,0.2,97832.0,97806.0,0.00410558]
[1732378763476,0.2,97831.0,97804.0,0.10201427]
[1732378763752,0.2,97831.0,97807.0,0.0041056]
[1732378764012,0.2,97831.0,97804.0,0.10201427]
[1732378764510,0.2,97831.0,97800.0,0.04238027]
[1732378764511,0.2,97831.0,97805.0,0.00410562]
[1732378764739,0.2,97823.0,97805.0,0.00410562]
[1732378764980,0.38873145,97830.0,97770.0,0.16191718]
[1732378764981,0.2,97822.0,97806.0,0.00410558]
[1732378765215,0.18051427,97830.0,97806.0,0.00410558]
[1732378765216,0.2,97819.0,97806.0,0.00410558]
[1732378765445,0.2,97819.0,97774.0,0.10201427]
[1732378765446,0.2,97815.0,97774.0,0.10201427]
[1732378765686,0.10201427,97818.0,97774.0,0.10201427]
[1732378765687,0.2,97811.0,97774.0,0.10201427]
[1732378765916,0.10201427,97818.0,97774.0,0.10201427]
[1732378765917,0.2,97803.0,97775.0,0.0041057]
[1732378766153,0.2,97803.0,97750.0,0.16191718]
[1732378766154,0.2,97799.0,97750.0,0.16191718]
[1732378766437,0.2,97799.0,97762.0,0.10201427]
[1732378766651,0.10201427,97798.0,97762.0,0.10303677]
[1732378766877,0.10201427,97798.0,97763.0,0.00410578]
[1732378767102,0.2,97795.0,97764.0,0.10201427]
[1732378767364,0.0763,97794.0,97764.0,0.10201427]
[1732378767592,0.2763,97794.0,97765.0,0.00410576]
[1732378767819,0.2763,97794.0,97766.0,0.10161512]
[1732378768043,0.2,97790.0,97767.0,0.023]
[1732378768273,0.2,97789.0,97769.0,0.023]
[1732378768519,0.2,97789.0,97767.0,0.00410564]
[1732378768520,0.2,97789.0,97767.0,0.10611991]
[1732378768751,0.2,97789.0,97770.0,0.00410561]
[1732378768992,0.2,97789.0,97768.0,0.00410562]
[1732378769219,0.2,97789.0,97762.0,0.10201427]
[1732378769465,0.2,97789.0,97769.0,0.00410562]
[1732378769707,0.0476,97788.0,97771.0,0.15]
[1732378769964,0.0763,97794.0,97780.0,0.15]
[1732378770208,0.0763,97794.0,97781.0,0.02784384]
[1732378770431,0.0476,97803.0,97783.0,0.023]
[1732378770657,0.0476,97803.0,97785.0,0.15]
[1732378770897,0.0476,97803.0,97791.0,0.15]
[1732378771127,0.0476,97803.0,97792.0,0.00102238]
[1732378771357,0.0476,97803.0,97793.0,0.173]
[1732378771582,0.0476,97803.0,97795.0,0.173]
[1732378771806,0.0476,97803.0,97796.0,0.00102233]
[1732378772031,0.0476,97803.0,97796.0,0.0079739]
[1732378772249,0.0476,97803.0,97796.0,0.00695157]
[1732378772474,0.0763,97809.0,97796.0,0.00695157]
[1732378772921,0.0763,97809.0,97796.0,0.00032565]
[1732378773143,0.0763,97809.0,97797.0,0.023]
[1732378773611,0.0763,97809.0,97799.0,0.023]
[1732378774118,0.0763,97809.0,97800.0,0.00590732]
[1732378774570,0.0763,97809.0,97792.0,0.023]
[1732378774809,0.2,97806.0,97793.0,0.00590739]
[1732378775054,0.2,97793.0,97765.0,0.00052186]
[1732378775270,0.2,97797.0,97770.0,0.16191718]
[1732378775496,0.2,97793.0,97771.0,0.10201427]
[1732378776177,0.2,97791.0,97765.0,0.00052186]
[1732378776395,0.2,97791.0,97767.0,0.15]
[1732378776642,0.0763,97787.0,97767.0,0.15]
[1732378777071,0.0763,97787.0,97765.0,0.00052186]
[1732378777072,0.2476,97786.0,97765.0,0.00052186]
[1732378778664,0.0476,97786.0,97771.0,0.15]
[1732378778889,0.2476,97786.0,97771.0,0.15]
[1732378779122,0.2476,97786.0,97772.0,0.023]
[1732378780234,0.0476,97786.0,97772.0,0.023]
[1732378780451,0.2476,97786.0,97774.0,0.023]
[1732378780668,0.0476,97786.0,97774.0,0.023]
[1732378780887,0.0476,97786.0,97776.0,0.023]
[1732378781115,0.2476,97786.0,97776.0,0.023]
[1732378781350,0.2476,97786.0,97778.0,0.01635637]
[1732378781644,0.2476,97786.0,97777.0,0.00492355]
[1732378781886,0.2476,97786.0,97771.0,0.15]
[1732378782119,0.2476,97786.0,97770.0,0.16191718]
[1732378782120,0.2,97800.0,97787.0,0.01429793]
[1732378782365,0.2,97805.0,97791.0,0.15]
[1732378782590,0.0831,97816.0,97791.0,0.15]
[1732378782591,0.2,97799.0,97792.0,0.00492352]
[1732378782813,0.2,97798.0,97792.0,0.00492352]
[1732378783520,0.2,97798.0,97792.0,0.00272132]
[1732378783746,0.2,97798.0,97787.0,0.01429793]
[1732378784656,0.2,97790.0,97787.0,0.01429793]
[1732378785114,0.2,97794.0,97787.0,0.01429793]
[1732378785343,0.2,97790.0,97787.0,0.01429793]
[1732378786047,0.2,97792.0,97787.0,0.01429793]
[1732378786264,0.2,97790.0,97787.0,0.01429793]
[1732378787156,0.2,97790.0,97782.0,0.01429866]
[1732378788276,0.2,97790.0,97787.0,0.15]
[1732378788503,0.2,97790.0,97782.0,0.01429866]
[1732378788942,0.2,97788.0,97782.0,0.01429866]
[1732378789156,0.2,97786.0,97782.0,0.01429866]
[1732378789419,0.2,97785.0,97784.0,0.15]
[1732378789651,0.2,97785.0,97782.0,0.01429866]
[1732378789652,0.2,97784.0,97782.0,0.01429866]
[1732378790112,0.2,97783.0,97782.0,0.01429866]
[1732378790800,0.2,97783.0,97770.0,0.16191718]
[1732378791036,0.2,97775.0,97771.0,0.15]
[1732378791934,0.2,97775.0,97763.0,0.15]
[1732378792172,0.2,97775.0,97764.0,0.10201427]
[1732378792402,0.2,97775.0,97765.0,0.15]
[1732378792629,0.2,97776.0,97767.0,0.15]
[1732378793079,0.2,97775.0,97767.0,0.15]
[1732378793344,0.2,97781.0,97768.0,0.1030369]
[1732378793565,0.2,97781.0,97769.0,0.15]
[1732378793815,0.0831,97796.0,97769.0,0.15]
[1732378793816,0.2,97782.0,97770.0,0.26393145]
[1732378794035,0.2,97782.0,97773.0,0.15]
[1732378794256,0.0831,97796.0,97775.0,0.14921984]
[1732378794496,0.2458,97797.0,97775.0,0.14921984]
[1732378794497,0.0458,97797.0,97786.0,0.16152726]
[1732378795800,0.0017206,97792.0,97786.0,0.16152726]
[1732378796029,0.0017206,97792.0,97787.0,0.10201427]
[1732378796490,0.0499,97811.0,97787.0,0.10201427]
[1732378796491,0.054141,97808.0,97788.0,0.15]
[1732378796720,0.054141,97808.0,97790.0,0.15]
[1732378796941,0.2,97807.0,97790.0,0.15]
[1732378797521,0.2,97799.0,97790.0,0.15]
[1732378798626,0.2,97798.0,97790.0,0.15]
[1732378800419,0.002,97797.0,97790.0,0.15]
[1732378800656,0.2,97798.0,97790.0,0.15]
[1732378801150,0.2,97798.0,97790.0,0.2]
[1732378801863,0.05391716,97808.0,97790.0,0.2]
[1732378802115,0.08960506,97866.0,97790.0,0.2]
[1732378802116,0.0757,97819.0,97799.0,0.14284498]
[1732378802382,0.2757,97819.0,97809.0,0.10798995]
[1732378802627,0.0757,97819.0,97810.0,0.00102221]
[1732378802878,0.0499,97826.0,97811.0,0.00102217]
[1732378803143,0.2,97825.0,97812.0,0.00102214]
[1732378803384,0.2,97825.0,97820.0,0.22802366]
[1732378803644,0.2,97827.0,97821.0,0.00102214]
[1732378803869,0.2,97832.0,97819.0,0.0010221]
[1732378804113,0.2,97832.0,97824.0,0.15]
[1732378804346,0.2,97849.0,97825.0,0.27382706]
[1732378804597,0.0499,97852.0,97840.0,0.10788731]
[1732378804942,0.0499,97852.0,97841.0,0.0010219]
[1732378804943,0.2,97849.0,97841.0,0.0010219]
[1732378805156,0.0499,97852.0,97840.0,0.10788731]
[1732378805157,0.2,97843.0,97842.0,0.15]
[1732378805441,0.2,97856.0,97842.0,0.15]
[1732378805682,0.002,97868.0,97825.0,0.0217]
[1732378805683,0.002,97868.0,97848.0,0.42341959]
[1732378805940,0.1256,97883.0,97843.0,0.10303608]
[1732378805941,0.2,97861.0,97859.0,0.15]
[1732378806747,0.0017208,97872.0,97859.0,0.15]
[1732378806976,0.0017208,97872.0,97867.0,0.22769767]
[1732378807253,0.2,97865.0,97864.0,0.42341959]
[1732378807538,0.2,97865.0,97864.0,0.15]
[1732378807803,0.2,97868.0,97864.0,0.15]
[1732378808054,0.0017208,97872.0,97866.0,0.22755151]
[1732378808299,0.2,97868.0,97867.0,0.15102167]
[1732378808861,0.0017208,97872.0,97867.0,0.37741986]
[1732378808863,0.0017208,97872.0,97867.0,0.15]
[1732378809065,0.0017208,97872.0,97871.0,0.15]
[1732378809287,0.2017208,97872.0,97871.0,0.15]
[1732378810223,0.2,97870.0,97869.0,0.22725364]
[1732378810449,0.2,97869.0,97862.0,0.15]
[1732378810726,0.2,97869.0,97863.0,0.10201427]
[1732378811475,0.2,97870.0,97863.0,0.10201427]
[1732378811934,0.00665782,97863.0,97854.0,0.27233886]
[1732378812174,0.00665782,97863.0,97855.0,0.10201427]
[1732378812408,0.20665782,97863.0,97851.0,0.27233886]
[1732378812697,0.20665782,97863.0,97844.0,0.27233886]
[1732378812698,0.2,97854.0,97844.0,0.27233886]
[1732378812940,0.2,97845.0,97838.0,0.27233886]
[1732378813171,0.202,97856.0,97833.0,0.27233886]
[1732378813172,0.2,97841.0,97833.0,0.27233886]
[1732378813444,0.2,97841.0,97829.0,0.27233886]
[1732378813684,0.2,97854.0,97830.0,0.26373822]
[1732378813913,0.1294,97862.0,97830.0,0.26373822]
[1732378813914,0.2,97846.0,97840.0,0.16172395]
[1732378814134,0.2,97859.0,97840.0,0.16172395]
[1732378814135,0.2,97847.0,97840.0,0.10201427]
[1732378814367,0.2,97847.0,97841.0,0.15]
[1732378814590,0.2,97847.0,97831.0,0.15]
[1732378814817,0.2,97847.0,97833.0,0.15]
[1732378815801,0.1294,97862.0,97833.0,0.15]
[1732378815802,0.2,97842.0,97833.0,0.15]
[1732378816021,0.202,97842.0,97824.0,0.15]
[1732378816243,0.2,97842.0,97826.0,0.15]
[1732378816745,0.2,97826.0,97808.0,0.40188946]
[1732378816982,0.2,97826.0,97800.0,0.20301332]
[1732378816983,0.2,97826.0,97809.0,0.10201427]
[1732378817208,0.00666061,97825.0,97809.0,0.10201427]
[1732378817428,0.00666061,97825.0,97810.0,0.16172395]
[1732378817654,0.00666061,97825.0,97790.0,0.05]
[1732378817655,0.2,97820.0,97794.0,0.40188946]
[1732378817879,0.00666061,97825.0,97790.0,0.21172395]
[1732378817880,0.2,97816.0,97795.0,0.10201427]
[1732378818100,0.2497,97813.0,97795.0,0.10201427]
[1732378818331,0.2497,97813.0,97800.0,0.16172395]
[1732378818556,0.2497,97813.0,97801.0,0.10201427]
[1732378819250,0.00666061,97825.0,97802.0,0.00102225]
[1732378819483,0.00666061,97825.0,97811.0,0.173]
[1732378819714,0.00666061,97825.0,97813.0,0.173]
[1732378819939,0.00666061,97825.0,97815.0,0.15]
[1732378820167,0.00666061,97825.0,97817.0,0.15]
[1732378820487,0.00666061,97825.0,97810.0,0.16172395]
[1732378820488,0.00666061,97825.0,97819.0,0.15]
[1732378820749,0.00666061,97825.0,97821.0,0.15]
[1732378820968,0.00666061,97825.0,97810.0,0.4338536]
[1732378820969,0.00666061,97825.0,97823.0,0.15]
[1732378821197,0.00666061,97825.0,97810.0,0.16172395]
[1732378821198,0.00666061,97825.0,97824.0,0.25303615]
[1732378821414,0.00666061,97825.0,97824.0,0.25201427]
[1732378825013,0.0017198,97842.0,97841.0,0.27501427]
[1732378825734,0.0017198,97842.0,97841.0,0.10201427]
[1732378825968,0.0017198,97842.0,97820.0,0.16172395]
[1732378825969,0.0017198,97842.0,97830.0,0.27199118]
[1732378826192,0.0017198,97842.0,97820.0,0.16172395]
[1732378826193,0.0510198,97842.0,97831.0,0.10201427]
[1732378827307,0.0510198,97842.0,97810.0,0.16172395]
[1732378827523,0.0510198,97842.0,97790.0,0.0692]
[1732378827524,0.2,97829.0,97811.0,0.10201427]
[1732378827741,0.2,97821.0,97811.0,0.10201427]
[1732378828475,0.0510198,97842.0,97790.0,0.05]
[1732378828476,0.002,97808.0,97790.0,0.05]
[1732378828701,0.0493,97812.0,97790.0,0.05]
[1732378828702,0.002,97804.0,97791.0,0.10201427]
[1732378828924,0.2,97806.0,97791.0,0.10201427]
[1732378829427,0.2,97807.0,97790.0,0.05]
[1732378829428,0.2,97805.0,97790.0,0.05]
[1732378829643,0.0493,97812.0,97790.0,0.05]
[1732378829644,0.4,97801.0,97790.0,0.05]
[1732378829863,0.2,97801.0,97790.0,0.05]
[1732378830087,0.4,97801.0,97790.0,0.21172395]
[1732378830295,0.4,97801.0,97790.0,0.05]
[1732378830520,0.2,97807.0,97791.0,0.10303667]
[1732378830745,0.2,97801.0,97792.0,0.15]
[1732378830974,0.2,97801.0,97794.0,0.15]
[1732378831210,0.2,97801.0,97795.0,0.10201427]
[1732378831439,0.002,97791.0,97790.0,0.05]
[1732378831656,0.11955055,97798.0,97790.0,0.05]
[1732378831907,0.002,97809.0,97791.0,0.1030367]
[1732378832126,0.11955055,97807.0,97791.0,0.10201427]
[1732378832347,0.11955055,97801.0,97790.0,0.05]
[1732378832570,0.002,97791.0,97790.0,0.05]
[1732378833259,0.11955055,97797.0,97790.0,0.05]
[1732378833483,0.002,97798.0,97790.0,0.05]
[1732378833711,0.0493,97812.0,97790.0,0.05]
[1732378833712,0.0493,97812.0,97792.0,0.15]
[1732378833936,0.0493,97812.0,97801.0,0.15]
[1732378834169,0.0493,97812.0,97802.0,0.00102227]
[1732378834652,0.0493,97812.0,97803.0,0.10201427]
[1732378834654,0.0493,97812.0,97804.0,0.15]
[1732378834911,0.078,97830.0,97806.0,0.15]
[1732378835141,0.078,97830.0,97810.0,0.16172395]
[1732378835392,0.078,97830.0,97811.0,0.25201427]
[1732378835975,0.11955055,97815.0,97811.0,0.15]
[1732378836181,0.11955055,97814.0,97811.0,0.15]
[1732378836417,0.11955055,97814.0,97791.0,0.15]
[1732378836682,0.002,97820.0,97791.0,0.15]
[1732378836683,0.11955055,97801.0,97791.0,0.15]
[1732378836921,0.11955055,97800.0,97791.0,0.15]
[1732378837170,0.11955055,97796.0,97790.0,0.05]
[1732378840596,0.11789863,97796.0,97790.0,0.05]
[1732378841312,0.18511427,97812.0,97791.0,0.00102244]
[1732378841313,0.11789863,97806.0,97791.0,0.00102244]
[1732378841603,0.0831,97812.0,97792.0,0.10201427]
[1732378841844,0.0831,97826.0,97799.0,0.16172395]
[1732378842114,0.0831,97826.0,97811.0,0.15]
[1732378842362,0.0831,97826.0,97813.0,0.15]
[1732378842588,0.0831,97826.0,97813.0,0.25201427]
[1732378843346,0.0464,97830.0,97810.0,0.16172395]
[1732378843347,0.0464,97830.0,97815.0,0.15]
[1732378843635,0.0464,97830.0,97816.0,0.10303632]
[1732378843871,0.0464,97830.0,97816.0,0.10201427]
[1732378844155,0.0464,97830.0,97820.0,0.16172395]
[1732378844389,0.0831,97838.0,97821.0,0.10201427]
[1732378845387,0.002,97837.0,97821.0,0.10201427]
[1732378845621,0.0831,97838.0,97822.0,0.15]
[1732378845622,0.002,97835.0,97822.0,0.15]
[1732378845877,0.002,97835.0,97822.0,0.25201427]
[1732378846437,0.002,97837.0,97822.0,0.25201427]
[1732378846664,0.0017198,97842.0,97824.0,0.15]
[1732378846917,0.0017198,97842.0,97833.0,0.15]
[1732378847216,0.0017198,97842.0,97832.0,0.16172395]
[1732378847217,0.0017198,97842.0,97835.0,0.15]
[1732378847460,0.11789863,97841.0,97835.0,0.15]
[1732378847683,0.0017198,97842.0,97836.0,0.10303623]
[1732378847929,0.0017198,97842.0,97837.0,0.15]
[1732378848666,0.0017198,97842.0,97838.0,0.00102187]
[1732378848893,0.0017198,97842.0,97826.0,0.15]
[1732378849121,0.0017198,97842.0,97828.0,0.15]
[1732378849347,0.0017198,97842.0,97830.0,0.15]
[1732378849646,0.0007198,97842.0,97830.0,0.25201427]
[1732378850362,0.11761843,97846.0,97830.0,0.25201427]
[1732378851839,0.11761843,97846.0,97835.0,0.15]
[1732378852347,0.11761843,97846.0,97830.0,0.10201427]
[1732378852348,0.0454,97847.0,97837.0,0.15]
[1732378852605,0.0454,97847.0,97832.0,0.2726807]
[1732378852606,0.0798,97852.0,97839.0,0.15]
[1732378852828,0.0798,97852.0,97840.0,0.10201427]
[1732378853083,0.0798,97852.0,97841.0,0.15]
[1732378853339,0.0798,97852.0,97841.0,0.25201427]
[1732378853596,0.0798,97852.0,97845.0,0.2726807]
[1732378853850,0.0798,97852.0,97846.0,0.15]
[1732378854072,0.2017208,97872.0,97846.0,0.15]
[1732378854073,0.11761843,97859.0,97846.0,0.15]
[1732378854321,0.11761843,97860.0,97849.0,0.15]
[1732378854603,0.0798,97863.0,97849.0,0.68641892]
[1732378854868,0.11761843,97864.0,97853.0,0.15]
[1732378855069,0.11761843,97864.0,97853.0,0.4226807]
[1732378855313,0.002,97861.0,97853.0,0.4226807]
[1732378855786,0.002,97861.0,97850.0,0.15]
[1732378856006,0.11761843,97864.0,97850.0,0.15]
[1732378856465,0.11761843,97864.0,97850.0,0.31172395]
[1732378856947,0.0455,97869.0,97852.0,0.15]
[1732378857404,0.11933923,97872.0,97860.0,0.15]
[1732378857405,0.0017208,97872.0,97860.0,0.15]
[1732378857406,0.0037208,97872.0,97860.0,0.15]
[1732378857627,0.0017208,97872.0,97862.0,0.15]
[1732378857864,0.0017208,97872.0,97864.0,0.15]
[1732378858355,0.11747823,97878.0,97864.0,0.15]
[1732378858635,0.11747823,97878.0,97869.0,0.15]
[1732378859307,0.11470421,97878.0,97869.0,0.15]
[1732378859999,0.11470421,97878.0,97864.0,0.15]
[1732378860222,0.002,97875.0,97864.0,0.15]
[1732378860456,0.11470421,97868.0,97852.0,0.19234383]
[1732378860711,0.11470421,97868.0,97854.0,0.15]
[1732378860940,0.11470421,97868.0,97854.0,0.25201427]
[1732378861419,0.0786,97882.0,97856.0,0.15]
[1732378861653,0.0786,97882.0,97845.0,0.08529579]
[1732378861654,0.0476,97883.0,97870.0,0.16172395]
[1732378861889,0.0017206,97890.0,97871.0,0.25201427]
[1732378862164,0.0017206,97890.0,97881.0,0.15]
[1732378863428,0.0017206,97890.0,97883.0,0.15]
[1732378863658,0.0017206,97890.0,97885.0,0.15]
[1732378863888,0.0017206,97890.0,97887.0,0.15]
[1732378864138,0.0017206,97890.0,97887.0,0.14332093]
[1732378865335,0.0017206,97890.0,97888.0,0.10201427]
[1732378865560,0.0017206,97890.0,97888.0,0.10303551]
[1732378865791,0.0017206,97890.0,97888.0,0.10201427]
[1732378866023,0.0017206,97890.0,97889.0,0.023]
[1732378866258,0.0017206,97890.0,97889.0,0.27501427]
[1732378866557,0.0017206,97890.0,97889.0,0.25201427]
[1732378867021,0.0017206,97890.0,97870.0,0.16172395]
[1732378867250,0.0017206,97890.0,97871.0,0.10201427]
[1732378867715,0.0017206,97890.0,97880.0,0.16172395]
[1732378867942,0.0017206,97890.0,97881.0,0.10303554]
[1732378868206,0.0017206,97890.0,97881.0,0.10201427]
[1732378868429,0.0017206,97890.0,97882.0,0.15]
[1732378868651,0.0017206,97890.0,97870.0,0.20354643]
[1732378868652,0.0481,97889.0,97884.0,0.15]
[1732378869128,0.0806,97888.0,97884.0,0.15]
[1732378869358,0.0806,97888.0,97830.0,0.001]
[1732378869359,0.11470421,97885.0,97840.0,0.16172395]
[1732378869624,0.002,97875.0,97849.0,0.10201427]
[1732378869841,0.11470421,97875.0,97849.0,0.10201427]
[1732378870063,0.18261427,97888.0,97849.0,0.10201427]
[1732378870064,0.11470421,97871.0,97849.0,0.10201427]
[1732378870322,0.11470421,97876.0,97860.0,0.16172395]
[1732378870560,0.0806,97888.0,97860.0,0.16172395]
[1732378870561,0.11470421,97878.0,97861.0,0.10303585]
[1732378870807,0.11470421,97886.0,97861.0,0.10303585]
[1732378871054,0.0806,97888.0,97871.0,0.15]
[1732378871333,0.0806,97888.0,97872.0,0.10201427]
[1732378871593,0.0481,97889.0,97873.0,0.15]
[1732378871820,0.0017206,97890.0,97879.0,0.16172395]
[1732378872044,0.0017206,97890.0,97880.0,0.25201427]
[1732378873048,0.11470421,97889.0,97861.0,0.15]
[1732378873269,0.11470421,97889.0,97863.0,0.15]
[1732378873497,0.11470421,97885.0,97865.0,0.15]
[1732378873741,0.002,97868.0,97867.0,0.15]
[1732378873972,0.0017206,97890.0,97845.0,0.10201427]
[1732378873973,0.11470421,97867.0,97845.0,0.10201427]
[1732378874242,0.002,97849.0,97845.0,0.10201427]
[1732378874454,0.002,97849.0,97820.0,0.16172395]
[1732378874455,0.1287,97848.0,97820.0,0.16172395]
[1732378874679,0.1287,97848.0,97821.0,0.10201427]
[1732378874912,0.1287,97848.0,97830.0,0.16143734]
[1732378875140,0.1287,97848.0,97831.0,0.10201427]
[1732378875380,0.11470421,97843.0,97820.0,0.16172395]
[1732378875622,0.11470421,97843.0,97821.0,0.10201427]
[1732378876090,0.002,97846.0,97821.0,0.10201427]